{"text_format":"1","workbook":"xlsx","n_sheets":1,"sheets":["primer"],"not_rendered":{"charts":0,"images":0,"macros":1,"external_links":0,"defined_names":0,"comments":0,"pivot_tables":0},"unopened":[],"bounds":{"document_bytes":16777216,"sheet_cells":100000,"rows_first":2000,"rows_last":500,"rows_between":2000,"halvings":0,"cell_chars":16384,"cell_head_chars":4096},"cells_cut":0,"cells_raw":0,"read":"whole","date_system":"1900"}

{"sheet":"primer","index":0,"n_rows":20,"n_cols":59,"rows_kept":20,"cut":false,"hidden":false,"merged":[]}
["name : Название","vendor : Производитель","image : Иллюстрация","article : Артикул","folder : Категория","body : Описание",null,"price : Цена","description"]
["Мобильный кондиционер Ballu BPHS-09H серии Platinum","Ballu","https://линии-тока.рф/d/1913920/d/22199_26043.png",22199,"Мобильные кондиционеры BALLU серии Platinum","<table width=\"100%\"border=\"0\"cellspacing=\"0\"cellpadding=\"4\"class=\"border\"><tr class=\"t0\"><td width=\"40%\">Мощность (охлаждение)</td><td><b>2,6 кВт</b></td></tr><tr class=\"t1\"><td width=\"40%\">Мощность (обогрев)</td><td><b>2,1 кВт</b></td></tr><tr class=\"t0\"><td width=\"40%\">Класс энергоэффективности</td><td><b>A</b></td></tr><tr class=\"t1\"><td width=\"40%\">Вентиляция</td><td><b>290 м3/ч</b></td></tr><tr class=\"t0\"><td width=\"40%\">Ток (охлаждение)</td><td><b>4,5 А</b></td></tr><tr class=\"t1\"><td width=\"40%\">Ток (обогрев)</td><td><b>9,7 А</b></td></tr><tr class=\"t0\"><td width=\"40%\">Подключение</td><td><b>220-240В, 50Гц, 1фаза</b></td></tr><tr class=\"t1\"><td width=\"40%\">Уровень шума</td><td><b>45-52 дБ</b></td></tr><tr class=\"t0\"><td width=\"40%\">Хладагент</td><td><b>R410a</b></td></tr><tr class=\"t1\"><td width=\"40%\">Размеры прибора</td><td><b>430x695x325 мм</b></td></tr><tr class=\"t0\"><td width=\"40%\">Размеры упаковки</td><td><b>480x880x380 мм</b></td></tr><tr class=\"t1\"><td width=\"40%\">Вес нетто</td><td><b>30 кг</b></td></tr><tr class=\"t0\"><td width=\"40%\">Вес брутто</td><td><b>35 кг</b></td></tr><tr class=\"t1\"><td width=\"40%\">Вес нетто, кг</td><td><b>30</b></td></tr><tr class=\"t0\"><td width=\"40%\">Вес брутто, кг</td><td><b>34</b></td></tr><tr class=\"t1\"><td width=\"40%\">Объём упаковки товара, м<sup>3</sup></td><td><b>0,160512</b></td></tr><tr class=\"t0\"><td width=\"40%\">Длина упаковки товара, м</td><td><b>0,38</b></td></tr><tr class=\"t1\"><td width=\"40%\">Ширина упаковки товара, м</td><td><b>0,48</b></td></tr><tr class=\"t0\"><td width=\"40%\">Высота упаковки товара, м</td><td><b>0,88</b></td></tr><tr class=\"t1\"><td width=\"40%\">Сайт производителя:</td><td><a href=\"http://www.ballu.ru/\">Ballu</a></td></tr></table>",null,21490,{"$f":"IvanPavlov($F2,COLUMN(A1),--ISEVEN(COLUMN(A1)))","v":"Мощность (охлаждение)"},{"$f":"IvanPavlov($F2,COLUMN(B1),--ISEVEN(COLUMN(B1)))","v":"2,6 кВт"},"Мощность (обогрев)","2,1 кВт","Класс энергоэффективности",{"$f":"IvanPavlov($F2,COLUMN(F1),--ISEVEN(COLUMN(F1)))","v":"A"},{"$f":"IvanPavlov($F2,COLUMN(G1),--ISEVEN(COLUMN(G1)))","v":"Вентиляция"},{"$f":"IvanPavlov($F2,COLUMN(H1),--ISEVEN(COLUMN(H1)))","v":"290 м3/ч"},{"$f":"IvanPavlov($F2,COLUMN(I1),--ISEVEN(COLUMN(I1)))","v":"Ток (охлаждение)"},{"$f":"IvanPavlov($F2,COLUMN(J1),--ISEVEN(COLUMN(J1)))","v":"4,5 А"},{"$f":"IvanPavlov($F2,COLUMN(K1),--ISEVEN(COLUMN(K1)))","v":"Ток (обогрев)"},{"$f":"IvanPavlov($F2,COLUMN(L1),--ISEVEN(COLUMN(L1)))","v":"9,7 А"},{"$f":"IvanPavlov($F2,COLUMN(M1),--ISEVEN(COLUMN(M1)))","v":"Подключение"},{"$f":"IvanPavlov($F2,COLUMN(N1),--ISEVEN(COLUMN(N1)))","v":"220-240В, 50Гц, 1фаза"},{"$f":"IvanPavlov($F2,COLUMN(O1),--ISEVEN(COLUMN(O1)))","v":"Уровень шума"},{"$f":"IvanPavlov($F2,COLUMN(P1),--ISEVEN(COLUMN(P1)))","v":"45-52 дБ"},{"$f":"IvanPavlov($F2,COLUMN(Q1),--ISEVEN(COLUMN(Q1)))","v":"Хладагент"},{"$f":"IvanPavlov($F2,COLUMN(R1),--ISEVEN(COLUMN(R1)))","v":"R410a"},{"$f":"IvanPavlov($F2,COLUMN(S1),--ISEVEN(COLUMN(S1)))","v":"Размеры прибора"},{"$f":"IvanPavlov($F2,COLUMN(T1),--ISEVEN(COLUMN(T1)))","v":"430x695x325 мм"},{"$f":"IvanPavlov($F2,COLUMN(U1),--ISEVEN(COLUMN(U1)))","v":"Размеры упаковки"},{"$f":"IvanPavlov($F2,COLUMN(V1),--ISEVEN(COLUMN(V1)))","v":"480x880x380 мм"},{"$f":"IvanPavlov($F2,COLUMN(W1),--ISEVEN(COLUMN(W1)))","v":"Вес нетто"},{"$f":"IvanPavlov($F2,COLUMN(X1),--ISEVEN(COLUMN(X1)))","v":"30 кг"},{"$f":"IvanPavlov($F2,COLUMN(Y1),--ISEVEN(COLUMN(Y1)))","v":"Вес брутто"},{"$f":"IvanPavlov($F2,COLUMN(Z1),--ISEVEN(COLUMN(Z1)))","v":"35 кг"},{"$f":"IvanPavlov($F2,COLUMN(AA1),--ISEVEN(COLUMN(AA1)))","v":"Вес нетто, кг"},{"$f":"IvanPavlov($F2,COLUMN(AB1),--ISEVEN(COLUMN(AB1)))","v":"30"},{"$f":"IvanPavlov($F2,COLUMN(AC1),--ISEVEN(COLUMN(AC1)))","v":"Вес брутто, кг"},{"$f":"IvanPavlov($F2,COLUMN(AD1),--ISEVEN(COLUMN(AD1)))","v":"34"},{"$f":"IvanPavlov($F2,COLUMN(AE1),--ISEVEN(COLUMN(AE1)))","v":"Объём упаковки товара, м"},{"$f":"IvanPavlov($F2,COLUMN(AF1),--ISEVEN(COLUMN(AF1)))","v":"0,160512"},{"$f":"IvanPavlov($F2,COLUMN(AG1),--ISEVEN(COLUMN(AG1)))","v":"Длина упаковки товара, м"},{"$f":"IvanPavlov($F2,COLUMN(AH1),--ISEVEN(COLUMN(AH1)))","v":"0,38"},{"$f":"IvanPavlov($F2,COLUMN(AI1),--ISEVEN(COLUMN(AI1)))","v":"Ширина упаковки товара, м"},{"$f":"IvanPavlov($F2,COLUMN(AJ1),--ISEVEN(COLUMN(AJ1)))","v":"0,48"},{"$f":"IvanPavlov($F2,COLUMN(AK1),--ISEVEN(COLUMN(AK1)))","v":"Высота упаковки товара, м"},{"$f":"IvanPavlov($F2,COLUMN(AL1),--ISEVEN(COLUMN(AL1)))","v":"0,88"},{"$f":"IvanPavlov($F2,COLUMN(AM1),--ISEVEN(COLUMN(AM1)))","v":"Сайт производителя:"},{"$f":"IvanPavlov($F2,COLUMN(AN1),--ISEVEN(COLUMN(AN1)))","v":""},{"$f":"IvanPavlov($F2,COLUMN(AO1),--ISEVEN(COLUMN(AO1)))","v":""},{"$f":"IvanPavlov($F2,COLUMN(AP1),--ISEVEN(COLUMN(AP1)))","v":""},{"$f":"IvanPavlov($F2,COLUMN(AQ1),--ISEVEN(COLUMN(AQ1)))","v":""},{"$f":"IvanPavlov($F2,COLUMN(AR1),--ISEVEN(COLUMN(AR1)))","v":""},{"$f":"IvanPavlov($F2,COLUMN(AS1),--ISEVEN(COLUMN(AS1)))","v":""},{"$f":"IvanPavlov($F2,COLUMN(AT1),--ISEVEN(COLUMN(AT1)))","v":""},{"$f":"IvanPavlov($F2,COLUMN(AU1),--ISEVEN(COLUMN(AU1)))","v":""},{"$f":"IvanPavlov($F2,COLUMN(AV1),--ISEVEN(COLUMN(AV1)))","v":""},{"$f":"IvanPavlov($F2,COLUMN(AW1),--ISEVEN(COLUMN(AW1)))","v":""},{"$f":"IvanPavlov($F2,COLUMN(AX1),--ISEVEN(COLUMN(AX1)))","v":""},{"$f":"IvanPavlov($F2,COLUMN(AY1),--ISEVEN(COLUMN(AY1)))","v":""}]
["Мобильный кондиционер Ballu BPHS-12H серии Platinum","Ballu","https://линии-тока.рф/d/1913920/d/22199_26043.png",22200,"Мобильные кондиционеры BALLU серии Platinum","<table width=\"100%\"border=\"0\"cellspacing=\"0\"cellpadding=\"4\"class=\"border\"><tr class=\"t0\"><td width=\"40%\">Мощность (охлаждение)</td><td><b>3,5 кВт</b></td></tr><tr class=\"t1\"><td width=\"40%\">Мощность (обогрев)</td><td><b>2,0 кВт</b></td></tr><tr class=\"t0\"><td width=\"40%\">Класс энергоэффективности</td><td><b>A</b></td></tr><tr class=\"t1\"><td width=\"40%\">Вентиляция</td><td><b>380 м3/ч</b></td></tr><tr class=\"t0\"><td width=\"40%\">Ток (охлаждение)</td><td><b>1,33 А</b></td></tr><tr class=\"t1\"><td width=\"40%\">Ток (обогрев)</td><td><b>2,0 А</b></td></tr><tr class=\"t0\"><td width=\"40%\">Подключение</td><td><b>220-240В, 50Гц, 1фаза</b></td></tr><tr class=\"t1\"><td width=\"40%\">Уровень шума</td><td><b>50-54 дБ</b></td></tr><tr class=\"t0\"><td width=\"40%\">Хладагент</td><td><b>R410a</b></td></tr><tr class=\"t1\"><td width=\"40%\">Размеры прибора</td><td><b>439x754x360 мм</b></td></tr><tr class=\"t0\"><td width=\"40%\">Размеры упаковки</td><td><b>505x885x430 мм</b></td></tr><tr class=\"t1\"><td width=\"40%\">Вес нетто</td><td><b>34 кг</b></td></tr><tr class=\"t0\"><td width=\"40%\">Вес брутто</td><td><b>39 кг</b></td></tr><tr class=\"t1\"><td width=\"40%\">Вес нетто, кг</td><td><b>34</b></td></tr><tr class=\"t0\"><td width=\"40%\">Вес брутто, кг</td><td><b>39</b></td></tr><tr class=\"t1\"><td width=\"40%\">Объём упаковки товара, м<sup>3</sup></td><td><b>0,19217775</b></td></tr><tr class=\"t0\"><td width=\"40%\">Длина упаковки товара, м</td><td><b>0,505</b></td></tr><tr class=\"t1\"><td width=\"40%\">Ширина упаковки товара, м</td><td><b>0,43</b></td></tr><tr class=\"t0\"><td width=\"40%\">Высота упаковки товара, м</td><td><b>0,885</b></td></tr><tr class=\"t1\"><td width=\"40%\">Сайт производителя:</td><td><a href=\"http://www.ballu.ru/\">Ballu</a></td></tr></table>",null,25990,{"$f":"IvanPavlov($F3,COLUMN(A2),--ISEVEN(COLUMN(A2)))","v":"Мощность (охлаждение)"},"3,5 кВт","Мощность (обогрев)","2,0 кВт","Класс энергоэффективности","A","Вентиляция","380 м3/ч","Ток (охлаждение)","1,33 А","Ток (обогрев)","2,0 А","Подключение","220-240В, 50Гц, 1фаза","Уровень шума","50-54 дБ","Хладагент","R410a","Размеры прибора","439x754x360 мм","Размеры упаковки","505x885x430 мм","Вес нетто","34 кг","Вес брутто","39 кг","Вес нетто, кг","34","Вес брутто, кг","39","Объём упаковки товара, м","0,19217775","Длина упаковки товара, м","0,505","Ширина упаковки товара, м","0,43","Высота упаковки товара, м","0,885","Сайт производителя:","","","","","","","","","","","",""]
["Кондиционер мобильный Ballu BPHS-14H","Ballu","https://линии-тока.рф/d/1913920/d/13960_5368.png",24394,"Мобильные кондиционеры BALLU серии Platinum","<table width=\"100%\"border=\"0\"cellspacing=\"0\"cellpadding=\"4\"class=\"border\"><tr class=\"t0\"><td width=\"40%\">Мощность (охлаждение)</td><td><b>4,1 кВт</b></td></tr><tr class=\"t1\"><td width=\"40%\">Мощность (обогрев)</td><td><b>3,5 кВт</b></td></tr><tr class=\"t0\"><td width=\"40%\">Класс энергоэффективности</td><td><b>A</b></td></tr><tr class=\"t1\"><td width=\"40%\">Вентиляция</td><td><b>300 м3/ч</b></td></tr><tr class=\"t0\"><td width=\"40%\">Ток (охлаждение)</td><td><b>1,3 А</b></td></tr><tr class=\"t1\"><td width=\"40%\">Ток (обогрев)</td><td><b>1,2 А</b></td></tr><tr class=\"t0\"><td width=\"40%\">Подключение</td><td><b>220-240~50</b></td></tr><tr class=\"t1\"><td width=\"40%\">Уровень шума</td><td><b>51-53 дБ</b></td></tr><tr class=\"t0\"><td width=\"40%\">Хладагент</td><td><b>R410a</b></td></tr><tr class=\"t1\"><td width=\"40%\">Размеры прибора</td><td><b>450х746х393 мм</b></td></tr><tr class=\"t0\"><td width=\"40%\">Размеры упаковки</td><td><b>475х870х450 мм</b></td></tr><tr class=\"t1\"><td width=\"40%\">Вес нетто</td><td><b>32 кг</b></td></tr><tr class=\"t0\"><td width=\"40%\">Вес брутто</td><td><b>36 кг</b></td></tr><tr class=\"t1\"><td width=\"40%\">Вес нетто, кг</td><td><b>32</b></td></tr><tr class=\"t0\"><td width=\"40%\">Вес брутто, кг</td><td><b>36</b></td></tr><tr class=\"t1\"><td width=\"40%\">Объём упаковки товара, м<sup>3</sup></td><td><b>0,1859625</b></td></tr><tr class=\"t0\"><td width=\"40%\">Длина упаковки товара, м</td><td><b>0,475</b></td></tr><tr class=\"t1\"><td width=\"40%\">Ширина упаковки товара, м</td><td><b>0,45</b></td></tr><tr class=\"t0\"><td width=\"40%\">Высота упаковки товара, м</td><td><b>0,87</b></td></tr><tr class=\"t1\"><td width=\"40%\">Сайт производителя:</td><td><a href=\"http://www.ballu.ru/\">Ballu</a></td></tr></table>",null,29990,"Мощность (охлаждение)","4,1 кВт","Мощность (обогрев)","3,5 кВт","Класс энергоэффективности","A","Вентиляция","300 м3/ч","Ток (охлаждение)","1,3 А","Ток (обогрев)","1,2 А","Подключение","220-240~50","Уровень шума","51-53 дБ","Хладагент","R410a","Размеры прибора","450х746х393 мм","Размеры упаковки","475х870х450 мм","Вес нетто","32 кг","Вес брутто","36 кг","Вес нетто, кг","32","Вес брутто, кг","36","Объём упаковки товара, м","0,1859625","Длина упаковки товара, м","0,475","Ширина упаковки товара, м","0,45","Высота упаковки товара, м","0,87","Сайт производителя:","","","","","","","","","","","",""]
["Кондиционер мобильный Ballu BPHS-16H","Ballu","https://линии-тока.рф/d/1913920/d/13960_5368.png",24393,"Мобильные кондиционеры BALLU серии Platinum","<table width=\"100%\"border=\"0\"cellspacing=\"0\"cellpadding=\"4\"class=\"border\"><tr class=\"t0\"><td width=\"40%\">Мощность (охлаждение)</td><td><b>4,7 кВт</b></td></tr><tr class=\"t1\"><td width=\"40%\">Мощность (обогрев)</td><td><b>3,8 кВт</b></td></tr><tr class=\"t0\"><td width=\"40%\">Класс энергоэффективности</td><td><b>A</b></td></tr><tr class=\"t1\"><td width=\"40%\">Вентиляция</td><td><b>420 м3/ч</b></td></tr><tr class=\"t0\"><td width=\"40%\">Ток (охлаждение)</td><td><b>1,4 А</b></td></tr><tr class=\"t1\"><td width=\"40%\">Ток (обогрев)</td><td><b>1,35 А</b></td></tr><tr class=\"t0\"><td width=\"40%\">Подключение</td><td><b>220-240~50</b></td></tr><tr class=\"t1\"><td width=\"40%\">Уровень шума</td><td><b>52-54 дБ</b></td></tr><tr class=\"t0\"><td width=\"40%\">Хладагент</td><td><b>R410a</b></td></tr><tr class=\"t1\"><td width=\"40%\">Размеры прибора</td><td><b>510х854х427 мм</b></td></tr><tr class=\"t0\"><td width=\"40%\">Размеры упаковки</td><td><b>545х1087х462 мм</b></td></tr><tr class=\"t1\"><td width=\"40%\">Вес нетто</td><td><b>35,5 кг</b></td></tr><tr class=\"t0\"><td width=\"40%\">Вес брутто</td><td><b>41,5 кг</b></td></tr><tr class=\"t1\"><td width=\"40%\">Вес нетто, кг</td><td><b>35,5</b></td></tr><tr class=\"t0\"><td width=\"40%\">Вес брутто, кг</td><td><b>41,5</b></td></tr><tr class=\"t1\"><td width=\"40%\">Объём упаковки товара, м<sup>3</sup></td><td><b>0,27369573</b></td></tr><tr class=\"t0\"><td width=\"40%\">Длина упаковки товара, м</td><td><b>0,545</b></td></tr><tr class=\"t1\"><td width=\"40%\">Ширина упаковки товара, м</td><td><b>0,462</b></td></tr><tr class=\"t0\"><td width=\"40%\">Высота упаковки товара, м</td><td><b>1,087</b></td></tr><tr class=\"t1\"><td width=\"40%\">Сайт производителя:</td><td><a href=\"http://www.ballu.ru/\">Ballu</a></td></tr></table>",null,32990,"Мощность (охлаждение)","4,7 кВт","Мощность (обогрев)","3,8 кВт","Класс энергоэффективности","A","Вентиляция","420 м3/ч","Ток (охлаждение)","1,4 А","Ток (обогрев)","1,35 А","Подключение","220-240~50","Уровень шума","52-54 дБ","Хладагент","R410a","Размеры прибора","510х854х427 мм","Размеры упаковки","545х1087х462 мм","Вес нетто","35,5 кг","Вес брутто","41,5 кг","Вес нетто, кг","35,5","Вес брутто, кг","41,5","Объём упаковки товара, м","0,27369573","Длина упаковки товара, м","0,545","Ширина упаковки товара, м","0,462","Высота упаковки товара, м","1,087","Сайт производителя:","","","","","","","","","","","",""]
["Кондиционер мобильный Ballu BPAC-07 CE_17Y серии Smart E","Ballu","https://линии-тока.рф/d/1913920/d/13960_26205.png",30844,"Мобильные кондиционеры BALLU серии Smart","<table width=\"100%\"border=\"0\"cellspacing=\"0\"cellpadding=\"4\"class=\"border\"><tr class=\"t0\"><td width=\"40%\">Мощность (охлаждение)</td><td><b>2.05 кВт</b></td></tr><tr class=\"t1\"><td width=\"40%\">Потребляемая мощность (охлаждение)</td><td><b>0,785 кВт</b></td></tr><tr class=\"t0\"><td width=\"40%\">Класс энергоэффективности</td><td><b>A</b></td></tr><tr class=\"t1\"><td width=\"40%\">Вентиляция</td><td><b>330 м3/ч</b></td></tr><tr class=\"t0\"><td width=\"40%\">Класс защиты (электричество)</td><td><b>I класс</b></td></tr><tr class=\"t1\"><td width=\"40%\">Степень защиты</td><td><b>IPX0</b></td></tr><tr class=\"t0\"><td width=\"40%\">Ток (охлаждение)</td><td><b>3,4 А</b></td></tr><tr class=\"t1\"><td width=\"40%\">Подключение</td><td><b>220-240/50,1 В/Гц,Ф</b></td></tr><tr class=\"t0\"><td width=\"40%\">Уровень шума</td><td><b>45-51 дБ</b></td></tr><tr class=\"t1\"><td width=\"40%\">Хладагент</td><td><b>R410A</b></td></tr><tr class=\"t0\"><td width=\"40%\">Размер (высота)</td><td><b>700 мм</b></td></tr><tr class=\"t1\"><td width=\"40%\">Размер (ширина)</td><td><b>283 мм</b></td></tr><tr class=\"t0\"><td width=\"40%\">Размер (глубина)</td><td><b>506 мм</b></td></tr><tr class=\"t1\"><td width=\"40%\">Вес</td><td><b>25 кг</b></td></tr><tr class=\"t0\"><td width=\"40%\">Вес нетто, кг</td><td><b>27</b></td></tr><tr class=\"t1\"><td width=\"40%\">Вес брутто, кг</td><td><b>31</b></td></tr><tr class=\"t0\"><td width=\"40%\">Объём упаковки товара, м<sup>3</sup></td><td><b>0,158688</b></td></tr><tr class=\"t1\"><td width=\"40%\">Длина упаковки товара, м</td><td><b>0,57</b></td></tr><tr class=\"t0\"><td width=\"40%\">Ширина упаковки товара, м</td><td><b>0,32</b></td></tr><tr class=\"t1\"><td width=\"40%\">Высота упаковки товара, м</td><td><b>0,87</b></td></tr><tr class=\"t0\"><td width=\"40%\">Сайт производителя:</td><td><a href=\"http://www.ballu.ru/\">Ballu</a></td></tr></table>",null,15390,"Мощность (охлаждение)","2.05 кВт","Потребляемая мощность (охлаждение)","0,785 кВт","Класс энергоэффективности","A","Вентиляция","330 м3/ч","Класс защиты (электричество)","I класс","Степень защиты","IPX0","Ток (охлаждение)","3,4 А","Подключение","220-240/50,1 В/Гц,Ф","Уровень шума","45-51 дБ","Хладагент","R410A","Размер (высота)","700 мм","Размер (ширина)","283 мм","Размер (глубина)","506 мм","Вес","25 кг","Вес нетто, кг","27","Вес брутто, кг","31","Объём упаковки товара, м","0,158688","Длина упаковки товара, м","0,57","Ширина упаковки товара, м","0,32","Высота упаковки товара, м","0,87","Сайт производителя:","","","","","","","","","",""]
["Кондиционер мобильный Ballu BPAC-09 CE_17Y серии Smart E","Ballu","https://линии-тока.рф/d/1913920/d/13960_26205.png",30845,"Мобильные кондиционеры BALLU серии Smart","<table width=\"100%\"border=\"0\"cellspacing=\"0\"cellpadding=\"4\"class=\"border\"><tr class=\"t0\"><td width=\"40%\">Мощность (охлаждение)</td><td><b>2.64 кВт</b></td></tr><tr class=\"t1\"><td width=\"40%\">Потребляемая мощность (охлаждение)</td><td><b>0.95 кВт</b></td></tr><tr class=\"t0\"><td width=\"40%\">Класс энергоэффективности</td><td><b>A</b></td></tr><tr class=\"t1\"><td width=\"40%\">Вентиляция</td><td><b>330 м3/ч</b></td></tr><tr class=\"t0\"><td width=\"40%\">Класс защиты (электричество)</td><td><b>I класс</b></td></tr><tr class=\"t1\"><td width=\"40%\">Степень защиты</td><td><b>IPX0</b></td></tr><tr class=\"t0\"><td width=\"40%\">Ток (охлаждение)</td><td><b>4,1 А</b></td></tr><tr class=\"t1\"><td width=\"40%\">Подключение</td><td><b>220-240/50,1 В/Гц,Ф</b></td></tr><tr class=\"t0\"><td width=\"40%\">Уровень шума</td><td><b>45-51 дБ</b></td></tr><tr class=\"t1\"><td width=\"40%\">Хладагент</td><td><b>R410A</b></td></tr><tr class=\"t0\"><td width=\"40%\">Размер (высота)</td><td><b>700 мм</b></td></tr><tr class=\"t1\"><td width=\"40%\">Размер (ширина)</td><td><b>283 мм</b></td></tr><tr class=\"t0\"><td width=\"40%\">Размер (глубина)</td><td><b>506 мм</b></td></tr><tr class=\"t1\"><td width=\"40%\">Вес</td><td><b>26 кг</b></td></tr><tr class=\"t0\"><td width=\"40%\">Вес нетто, кг</td><td><b>27</b></td></tr><tr class=\"t1\"><td width=\"40%\">Вес брутто, кг</td><td><b>31</b></td></tr><tr class=\"t0\"><td width=\"40%\">Объём упаковки товара, м<sup>3</sup></td><td><b>0,1548</b></td></tr><tr class=\"t1\"><td width=\"40%\">Длина упаковки товара, м</td><td><b>0,5</b></td></tr><tr class=\"t0\"><td width=\"40%\">Ширина упаковки товара, м</td><td><b>0,36</b></td></tr><tr class=\"t1\"><td width=\"40%\">Высота упаковки товара, м</td><td><b>0,86</b></td></tr><tr class=\"t0\"><td width=\"40%\">Сайт производителя:</td><td><a href=\"http://www.ballu.ru/\">Ballu</a></td></tr></table>",null,17390,"Мощность (охлаждение)","2.64 кВт","Потребляемая мощность (охлаждение)","0.95 кВт","Класс энергоэффективности","A","Вентиляция","330 м3/ч","Класс защиты (электричество)","I класс","Степень защиты","IPX0","Ток (охлаждение)","4,1 А","Подключение","220-240/50,1 В/Гц,Ф","Уровень шума","45-51 дБ","Хладагент","R410A","Размер (высота)","700 мм","Размер (ширина)","283 мм","Размер (глубина)","506 мм","Вес","26 кг","Вес нетто, кг","27","Вес брутто, кг","31","Объём упаковки товара, м","0,1548","Длина упаковки товара, м","0,5","Ширина упаковки товара, м","0,36","Высота упаковки товара, м","0,86","Сайт производителя:","","","","","","","","","",""]
["Кондиционер мобильный Ballu BPAC-12 CE_17Y серии Smart E","Ballu","https://линии-тока.рф/d/1913920/d/13960_26205.png",30846,"Мобильные кондиционеры BALLU серии Smart","<table width=\"100%\"border=\"0\"cellspacing=\"0\"cellpadding=\"4\"class=\"border\"><tr class=\"t0\"><td width=\"40%\">Мощность (охлаждение)</td><td><b>3.22 кВт</b></td></tr><tr class=\"t1\"><td width=\"40%\">Потребляемая мощность (охлаждение)</td><td><b>1,25 кВт</b></td></tr><tr class=\"t0\"><td width=\"40%\">Класс энергоэффективности</td><td><b>A</b></td></tr><tr class=\"t1\"><td width=\"40%\">Вентиляция</td><td><b>330 м3/ч</b></td></tr><tr class=\"t0\"><td width=\"40%\">Класс защиты (электричество)</td><td><b>I класс</b></td></tr><tr class=\"t1\"><td width=\"40%\">Степень защиты</td><td><b>IPX0</b></td></tr><tr class=\"t0\"><td width=\"40%\">Ток (охлаждение)</td><td><b>5,5 А</b></td></tr><tr class=\"t1\"><td width=\"40%\">Подключение</td><td><b>220-240/50,1 В/Гц,Ф</b></td></tr><tr class=\"t0\"><td width=\"40%\">Уровень шума</td><td><b>45-51 дБ</b></td></tr><tr class=\"t1\"><td width=\"40%\">Хладагент</td><td><b>R410A</b></td></tr><tr class=\"t0\"><td width=\"40%\">Размер (высота)</td><td><b>700 мм</b></td></tr><tr class=\"t1\"><td width=\"40%\">Размер (ширина)</td><td><b>283 мм</b></td></tr><tr class=\"t0\"><td width=\"40%\">Размер (глубина)</td><td><b>506 мм</b></td></tr><tr class=\"t1\"><td width=\"40%\">Вес</td><td><b>28 кг</b></td></tr><tr class=\"t0\"><td width=\"40%\">Вес нетто, кг</td><td><b>27</b></td></tr><tr class=\"t1\"><td width=\"40%\">Вес брутто, кг</td><td><b>31</b></td></tr><tr class=\"t0\"><td width=\"40%\">Объём упаковки товара, м<sup>3</sup></td><td><b>0,160776</b></td></tr><tr class=\"t1\"><td width=\"40%\">Длина упаковки товара, м</td><td><b>0,33</b></td></tr><tr class=\"t0\"><td width=\"40%\">Ширина упаковки товара, м</td><td><b>0,56</b></td></tr><tr class=\"t1\"><td width=\"40%\">Высота упаковки товара, м</td><td><b>0,87</b></td></tr><tr class=\"t0\"><td width=\"40%\">Сайт производителя:</td><td><a href=\"http://www.ballu.ru/\">Ballu</a></td></tr></table>",null,20390,"Мощность (охлаждение)","3.22 кВт","Потребляемая мощность (охлаждение)","1,25 кВт","Класс энергоэффективности","A","Вентиляция","330 м3/ч","Класс защиты (электричество)","I класс","Степень защиты","IPX0","Ток (охлаждение)","5,5 А","Подключение","220-240/50,1 В/Гц,Ф","Уровень шума","45-51 дБ","Хладагент","R410A","Размер (высота)","700 мм","Размер (ширина)","283 мм","Размер (глубина)","506 мм","Вес","28 кг","Вес нетто, кг","27","Вес брутто, кг","31","Объём упаковки товара, м","0,160776","Длина упаковки товара, м","0,33","Ширина упаковки товара, м","0,56","Высота упаковки товара, м","0,87","Сайт производителя:","","","","","","","","","",""]
["Кондиционер мобильный Ballu BPAC-15 CE серии Smart Pro","Ballu","https://линии-тока.рф/d/1913920/d/13960_26205.png",30860,"Мобильные кондиционеры BALLU серии Smart","<table width=\"100%\"border=\"0\"cellspacing=\"0\"cellpadding=\"4\"class=\"border\"><tr class=\"t0\"><td width=\"40%\">Мощность (охлаждение)</td><td><b>4,4 кВт</b></td></tr><tr class=\"t1\"><td width=\"40%\">Класс энергоэффективности</td><td><b>A</b></td></tr><tr class=\"t0\"><td width=\"40%\">Вентиляция</td><td><b>450 м3/ч</b></td></tr><tr class=\"t1\"><td width=\"40%\">Подключение</td><td><b>220-240/50,1 В/Гц,Ф</b></td></tr><tr class=\"t0\"><td width=\"40%\">Уровень шума</td><td><b>50 дБ</b></td></tr><tr class=\"t1\"><td width=\"40%\">Вес нетто, кг</td><td><b>26</b></td></tr><tr class=\"t0\"><td width=\"40%\">Вес брутто, кг</td><td><b>30</b></td></tr><tr class=\"t1\"><td width=\"40%\">Объём упаковки товара, м<sup>3</sup></td><td><b>0,25585</b></td></tr><tr class=\"t0\"><td width=\"40%\">Длина упаковки товара, м</td><td><b>0,7</b></td></tr><tr class=\"t1\"><td width=\"40%\">Ширина упаковки товара, м</td><td><b>0,425</b></td></tr><tr class=\"t0\"><td width=\"40%\">Высота упаковки товара, м</td><td><b>0,86</b></td></tr><tr class=\"t1\"><td width=\"40%\">Количество на палетте упаковки товара, шт</td><td><b>1</b></td></tr><tr class=\"t0\"><td width=\"40%\">Количество в упаковке упаковки товара, шт</td><td><b>1</b></td></tr><tr class=\"t1\"><td width=\"40%\">Сайт производителя:</td><td><a href=\"http://www.ballu.ru/\">Ballu</a></td></tr></table>",null,28490,"Мощность (охлаждение)","4,4 кВт","Класс энергоэффективности","A","Вентиляция","450 м3/ч","Подключение","220-240/50,1 В/Гц,Ф","Уровень шума","50 дБ","Вес нетто, кг","26","Вес брутто, кг","30","Объём упаковки товара, м","0,25585","Длина упаковки товара, м","0,7","Ширина упаковки товара, м","0,425","Высота упаковки товара, м","0,86","Количество на палетте упаковки товара, шт","1","Количество в упаковке упаковки товара, шт","1","Сайт производителя:","","","","","","","","","","","","","","","","","","","","","","","",""]
["Кондиционер мобильный Ballu BPAC-16 CE серии Smart Pro","Ballu","https://линии-тока.рф/d/1913920/d/13960_26205.png",30861,"Мобильные кондиционеры BALLU серии Smart","<table width=\"100%\"border=\"0\"cellspacing=\"0\"cellpadding=\"4\"class=\"border\"><tr class=\"t0\"><td width=\"40%\">Мощность (охлаждение)</td><td><b>4,6 кВт</b></td></tr><tr class=\"t1\"><td width=\"40%\">Класс энергоэффективности</td><td><b>A</b></td></tr><tr class=\"t0\"><td width=\"40%\">Вентиляция</td><td><b>520 м3/ч</b></td></tr><tr class=\"t1\"><td width=\"40%\">Подключение</td><td><b>220-240/50,1 В/Гц,Ф</b></td></tr><tr class=\"t0\"><td width=\"40%\">Уровень шума</td><td><b>52 дБ</b></td></tr><tr class=\"t1\"><td width=\"40%\">Вес нетто, кг</td><td><b>28</b></td></tr><tr class=\"t0\"><td width=\"40%\">Вес брутто, кг</td><td><b>33</b></td></tr><tr class=\"t1\"><td width=\"40%\">Объём упаковки товара, м<sup>3</sup></td><td><b>0,25585</b></td></tr><tr class=\"t0\"><td width=\"40%\">Длина упаковки товара, м</td><td><b>0,7</b></td></tr><tr class=\"t1\"><td width=\"40%\">Ширина упаковки товара, м</td><td><b>0,425</b></td></tr><tr class=\"t0\"><td width=\"40%\">Высота упаковки товара, м</td><td><b>0,86</b></td></tr><tr class=\"t1\"><td width=\"40%\">Количество на палетте упаковки товара, шт</td><td><b>3</b></td></tr><tr class=\"t0\"><td width=\"40%\">Количество в упаковке упаковки товара, шт</td><td><b>1</b></td></tr><tr class=\"t1\"><td width=\"40%\">Сайт производителя:</td><td><a href=\"http://www.ballu.ru/\">Ballu</a></td></tr></table>",null,32490,"Мощность (охлаждение)","4,6 кВт","Класс энергоэффективности","A","Вентиляция","520 м3/ч","Подключение","220-240/50,1 В/Гц,Ф","Уровень шума","52 дБ","Вес нетто, кг","28","Вес брутто, кг","33","Объём упаковки товара, м","0,25585","Длина упаковки товара, м","0,7","Ширина упаковки товара, м","0,425","Высота упаковки товара, м","0,86","Количество на палетте упаковки товара, шт","3","Количество в упаковке упаковки товара, шт","1","Сайт производителя:","","","","","","","","","","","","","","","","","","","","","","","",""]
["Кондиционер мобильный Ballu BPAC-18 CE серии Smart Pro","Ballu","https://линии-тока.рф/d/1913920/d/13960_26205.png",30862,"Мобильные кондиционеры BALLU серии Smart","<table width=\"100%\"border=\"0\"cellspacing=\"0\"cellpadding=\"4\"class=\"border\"><tr class=\"t0\"><td width=\"40%\">Мощность (охлаждение)</td><td><b>5,5 кВт</b></td></tr><tr class=\"t1\"><td width=\"40%\">Класс энергоэффективности</td><td><b>A</b></td></tr><tr class=\"t0\"><td width=\"40%\">Вентиляция</td><td><b>450 м3/ч</b></td></tr><tr class=\"t1\"><td width=\"40%\">Подключение</td><td><b>220-240/50,1 В/Гц,Ф</b></td></tr><tr class=\"t0\"><td width=\"40%\">Уровень шума</td><td><b>54 дБ</b></td></tr><tr class=\"t1\"><td width=\"40%\">Вес нетто, кг</td><td><b>30</b></td></tr><tr class=\"t0\"><td width=\"40%\">Вес брутто, кг</td><td><b>35</b></td></tr><tr class=\"t1\"><td width=\"40%\">Объём упаковки товара, м<sup>3</sup></td><td><b>0,25284</b></td></tr><tr class=\"t0\"><td width=\"40%\">Длина упаковки товара, м</td><td><b>0,7</b></td></tr><tr class=\"t1\"><td width=\"40%\">Ширина упаковки товара, м</td><td><b>0,42</b></td></tr><tr class=\"t0\"><td width=\"40%\">Высота упаковки товара, м</td><td><b>0,86</b></td></tr><tr class=\"t1\"><td width=\"40%\">Количество на палетте упаковки товара, шт</td><td><b>1</b></td></tr><tr class=\"t0\"><td width=\"40%\">Количество в упаковке упаковки товара, шт</td><td><b>1</b></td></tr><tr class=\"t1\"><td width=\"40%\">Сайт производителя:</td><td><a href=\"http://www.ballu.ru/\">Ballu</a></td></tr></table>",null,38490,"Мощность (охлаждение)","5,5 кВт","Класс энергоэффективности","A","Вентиляция","450 м3/ч","Подключение","220-240/50,1 В/Гц,Ф","Уровень шума","54 дБ","Вес нетто, кг","30","Вес брутто, кг","35","Объём упаковки товара, м","0,25284","Длина упаковки товара, м","0,7","Ширина упаковки товара, м","0,42","Высота упаковки товара, м","0,86","Количество на палетте упаковки товара, шт","1","Количество в упаковке упаковки товара, шт","1","Сайт производителя:","","","","","","","","","","","","","","","","","","","","","","","",""]
["Мобильный кондиционер Ballu BPAC-07 CM","Ballu","https://линии-тока.рф/d/1913920/d/20943_23435.png",20943,"Мобильные кондиционеры BALLU серии Smart","<table width=\"100%\"border=\"0\"cellspacing=\"0\"cellpadding=\"4\"class=\"border\"><tr class=\"t0\"><td width=\"40%\">Мощность (охлаждение)</td><td><b>2,051 кВт</b></td></tr><tr class=\"t1\"><td width=\"40%\">Мощность (обогрев)</td><td><b>- кВт</b></td></tr><tr class=\"t0\"><td width=\"40%\">Потребляемая мощность (охлаждение)</td><td><b>0,785 кВт</b></td></tr><tr class=\"t1\"><td width=\"40%\">Потребляемая мощность (нагрев)</td><td><b>- кВт</b></td></tr><tr class=\"t0\"><td width=\"40%\">Класс энергоэффективности</td><td><b>A</b></td></tr><tr class=\"t1\"><td width=\"40%\">Вентиляция</td><td><b>330 м3/ч</b></td></tr><tr class=\"t0\"><td width=\"40%\">Класс защиты (электричество)</td><td><b>I класс</b></td></tr><tr class=\"t1\"><td width=\"40%\">Степень защиты</td><td><b>IPX0</b></td></tr><tr class=\"t0\"><td width=\"40%\">Ток (охлаждение)</td><td><b>3,4 А</b></td></tr><tr class=\"t1\"><td width=\"40%\">Подключение</td><td><b>220-240 В ~ 50 Гц</b></td></tr><tr class=\"t0\"><td width=\"40%\">Уровень шума</td><td><b>45–51 дБ</b></td></tr><tr class=\"t1\"><td width=\"40%\">Хладагент</td><td><b>R410А</b></td></tr><tr class=\"t0\"><td width=\"40%\">Размер (высота)</td><td><b>695 мм</b></td></tr><tr class=\"t1\"><td width=\"40%\">Размер (ширина)</td><td><b>270 мм</b></td></tr><tr class=\"t0\"><td width=\"40%\">Размер (глубина)</td><td><b>480 мм</b></td></tr><tr class=\"t1\"><td width=\"40%\">Вес</td><td><b>25 кг</b></td></tr><tr class=\"t0\"><td width=\"40%\">Гарантия</td><td><b>2 года</b></td></tr><tr class=\"t1\"><td width=\"40%\">Вес нетто, кг</td><td><b>27,5</b></td></tr><tr class=\"t0\"><td width=\"40%\">Вес брутто, кг</td><td><b>31</b></td></tr><tr class=\"t1\"><td width=\"40%\">Объём упаковки товара, м<sup>3</sup></td><td><b>0,1564785</b></td></tr><tr class=\"t0\"><td width=\"40%\">Длина упаковки товара, м</td><td><b>0,54</b></td></tr><tr class=\"t1\"><td width=\"40%\">Ширина упаковки товара, м</td><td><b>0,335</b></td></tr><tr class=\"t0\"><td width=\"40%\">Высота упаковки товара, м</td><td><b>0,865</b></td></tr><tr class=\"t1\"><td width=\"40%\">Сайт производителя:</td><td><a href=\"http://www.ballu.ru/\">Ballu</a></td></tr></table>",null,14290,"Мощность (охлаждение)","2,051 кВт","Мощность (обогрев)","- кВт","Потребляемая мощность (охлаждение)","0,785 кВт","Потребляемая мощность (нагрев)","- кВт","Класс энергоэффективности","A","Вентиляция","330 м3/ч","Класс защиты (электричество)","I класс","Степень защиты","IPX0","Ток (охлаждение)","3,4 А","Подключение","220-240 В ~ 50 Гц","Уровень шума","45–51 дБ","Хладагент","R410А","Размер (высота)","695 мм","Размер (ширина)","270 мм","Размер (глубина)","480 мм","Вес","25 кг","Гарантия","2 года","Вес нетто, кг","27,5","Вес брутто, кг","31","Объём упаковки товара, м","0,1564785","Длина упаковки товара, м","0,54","Ширина упаковки товара, м","0,335","Высота упаковки товара, м","0,865","Сайт производителя:","","","",""]
["Мобильный кондиционер Ballu BPAC-09 CM","Ballu","https://линии-тока.рф/d/1913920/d/20943_23435.png",20941,"Мобильные кондиционеры BALLU серии Smart","<table width=\"100%\"border=\"0\"cellspacing=\"0\"cellpadding=\"4\"class=\"border\"><tr class=\"t0\"><td width=\"40%\">Мощность (охлаждение)</td><td><b>2,638 кВт</b></td></tr><tr class=\"t1\"><td width=\"40%\">Мощность (обогрев)</td><td><b>- кВт</b></td></tr><tr class=\"t0\"><td width=\"40%\">Потребляемая мощность (охлаждение)</td><td><b>0,95 кВт</b></td></tr><tr class=\"t1\"><td width=\"40%\">Потребляемая мощность (нагрев)</td><td><b>- кВт</b></td></tr><tr class=\"t0\"><td width=\"40%\">Класс энергоэффективности</td><td><b>A</b></td></tr><tr class=\"t1\"><td width=\"40%\">Вентиляция</td><td><b>330 м3/ч</b></td></tr><tr class=\"t0\"><td width=\"40%\">Класс защиты (электричество)</td><td><b>I класс</b></td></tr><tr class=\"t1\"><td width=\"40%\">Степень защиты</td><td><b>IPX0</b></td></tr><tr class=\"t0\"><td width=\"40%\">Ток (охлаждение)</td><td><b>4,1 А</b></td></tr><tr class=\"t1\"><td width=\"40%\">Подключение</td><td><b>220-240 В ~ 50 Гц</b></td></tr><tr class=\"t0\"><td width=\"40%\">Уровень шума</td><td><b>45–51 дБ</b></td></tr><tr class=\"t1\"><td width=\"40%\">Хладагент</td><td><b>R410А</b></td></tr><tr class=\"t0\"><td width=\"40%\">Размер (высота)</td><td><b>695 мм</b></td></tr><tr class=\"t1\"><td width=\"40%\">Размер (ширина)</td><td><b>270 мм</b></td></tr><tr class=\"t0\"><td width=\"40%\">Размер (глубина)</td><td><b>480 мм</b></td></tr><tr class=\"t1\"><td width=\"40%\">Вес</td><td><b>26 кг</b></td></tr><tr class=\"t0\"><td width=\"40%\">Гарантия</td><td><b>2 года</b></td></tr><tr class=\"t1\"><td width=\"40%\">Вес нетто, кг</td><td><b>28,5</b></td></tr><tr class=\"t0\"><td width=\"40%\">Вес брутто, кг</td><td><b>32</b></td></tr><tr class=\"t1\"><td width=\"40%\">Объём упаковки товара, м<sup>3</sup></td><td><b>0,1564785</b></td></tr><tr class=\"t0\"><td width=\"40%\">Длина упаковки товара, м</td><td><b>0,54</b></td></tr><tr class=\"t1\"><td width=\"40%\">Ширина упаковки товара, м</td><td><b>0,335</b></td></tr><tr class=\"t0\"><td width=\"40%\">Высота упаковки товара, м</td><td><b>0,865</b></td></tr><tr class=\"t1\"><td width=\"40%\">Сайт производителя:</td><td><a href=\"http://www.ballu.ru/\">Ballu</a></td></tr></table>",null,15290,"Мощность (охлаждение)","2,638 кВт","Мощность (обогрев)","- кВт","Потребляемая мощность (охлаждение)","0,95 кВт","Потребляемая мощность (нагрев)","- кВт","Класс энергоэффективности","A","Вентиляция","330 м3/ч","Класс защиты (электричество)","I класс","Степень защиты","IPX0","Ток (охлаждение)","4,1 А","Подключение","220-240 В ~ 50 Гц","Уровень шума","45–51 дБ","Хладагент","R410А","Размер (высота)","695 мм","Размер (ширина)","270 мм","Размер (глубина)","480 мм","Вес","26 кг","Гарантия","2 года","Вес нетто, кг","28,5","Вес брутто, кг","32","Объём упаковки товара, м","0,1564785","Длина упаковки товара, м","0,54","Ширина упаковки товара, м","0,335","Высота упаковки товара, м","0,865","Сайт производителя:","","","",""]
["Мобильный кондиционер Ballu BPAC-12 CM","Ballu","https://линии-тока.рф/d/1913920/d/20943_23435.png",20942,"Мобильные кондиционеры BALLU серии Smart","<table width=\"100%\"border=\"0\"cellspacing=\"0\"cellpadding=\"4\"class=\"border\"><tr class=\"t0\"><td width=\"40%\">Мощность (охлаждение)</td><td><b>3,224 кВт</b></td></tr><tr class=\"t1\"><td width=\"40%\">Мощность (обогрев)</td><td><b>- кВт</b></td></tr><tr class=\"t0\"><td width=\"40%\">Потребляемая мощность (охлаждение)</td><td><b>1,25 кВт</b></td></tr><tr class=\"t1\"><td width=\"40%\">Потребляемая мощность (нагрев)</td><td><b>- кВт</b></td></tr><tr class=\"t0\"><td width=\"40%\">Класс энергоэффективности</td><td><b>A</b></td></tr><tr class=\"t1\"><td width=\"40%\">Вентиляция</td><td><b>330 м3/ч</b></td></tr><tr class=\"t0\"><td width=\"40%\">Класс защиты (электричество)</td><td><b>I класс</b></td></tr><tr class=\"t1\"><td width=\"40%\">Степень защиты</td><td><b>IPX0</b></td></tr><tr class=\"t0\"><td width=\"40%\">Ток (охлаждение)</td><td><b>5,5 А</b></td></tr><tr class=\"t1\"><td width=\"40%\">Подключение</td><td><b>220-240 В ~ 50 Гц</b></td></tr><tr class=\"t0\"><td width=\"40%\">Уровень шума</td><td><b>45–51 дБ</b></td></tr><tr class=\"t1\"><td width=\"40%\">Хладагент</td><td><b>R410А</b></td></tr><tr class=\"t0\"><td width=\"40%\">Размер (высота)</td><td><b>695 мм</b></td></tr><tr class=\"t1\"><td width=\"40%\">Размер (ширина)</td><td><b>270 мм</b></td></tr><tr class=\"t0\"><td width=\"40%\">Размер (глубина)</td><td><b>480 мм</b></td></tr><tr class=\"t1\"><td width=\"40%\">Вес</td><td><b>28 кг</b></td></tr><tr class=\"t0\"><td width=\"40%\">Гарантия</td><td><b>2 года</b></td></tr><tr class=\"t1\"><td width=\"40%\">Вес нетто, кг</td><td><b>29,5</b></td></tr><tr class=\"t0\"><td width=\"40%\">Вес брутто, кг</td><td><b>33</b></td></tr><tr class=\"t1\"><td width=\"40%\">Объём упаковки товара, м<sup>3</sup></td><td><b>0,1564785</b></td></tr><tr class=\"t0\"><td width=\"40%\">Длина упаковки товара, м</td><td><b>0,54</b></td></tr><tr class=\"t1\"><td width=\"40%\">Ширина упаковки товара, м</td><td><b>0,335</b></td></tr><tr class=\"t0\"><td width=\"40%\">Высота упаковки товара, м</td><td><b>0,865</b></td></tr><tr class=\"t1\"><td width=\"40%\">Сайт производителя:</td><td><a href=\"http://www.ballu.ru/\">Ballu</a></td></tr></table>",null,22045,"Мощность (охлаждение)","3,224 кВт","Мощность (обогрев)","- кВт","Потребляемая мощность (охлаждение)","1,25 кВт","Потребляемая мощность (нагрев)","- кВт","Класс энергоэффективности","A","Вентиляция","330 м3/ч","Класс защиты (электричество)","I класс","Степень защиты","IPX0","Ток (охлаждение)","5,5 А","Подключение","220-240 В ~ 50 Гц","Уровень шума","45–51 дБ","Хладагент","R410А","Размер (высота)","695 мм","Размер (ширина)","270 мм","Размер (глубина)","480 мм","Вес","28 кг","Гарантия","2 года","Вес нетто, кг","29,5","Вес брутто, кг","33","Объём упаковки товара, м","0,1564785","Длина упаковки товара, м","0,54","Ширина упаковки товара, м","0,335","Высота упаковки товара, м","0,865","Сайт производителя:","","","",""]
["Мобильный кондиционер Ballu BPAC-07 CE","Ballu","https://линии-тока.рф/d/1913920/d/20943_26189.png",20946,"Мобильные кондиционеры BALLU серии Smart","<table width=\"100%\"border=\"0\"cellspacing=\"0\"cellpadding=\"4\"class=\"border\"><tr class=\"t0\"><td width=\"40%\">Мощность (охлаждение)</td><td><b>2,051 кВт</b></td></tr><tr class=\"t1\"><td width=\"40%\">Мощность (обогрев)</td><td><b>- кВт</b></td></tr><tr class=\"t0\"><td width=\"40%\">Потребляемая мощность (охлаждение)</td><td><b>0,785 кВт</b></td></tr><tr class=\"t1\"><td width=\"40%\">Потребляемая мощность (нагрев)</td><td><b>- кВт</b></td></tr><tr class=\"t0\"><td width=\"40%\">Класс энергоэффективности</td><td><b>A</b></td></tr><tr class=\"t1\"><td width=\"40%\">Вентиляция</td><td><b>330 м3/ч</b></td></tr><tr class=\"t0\"><td width=\"40%\">Класс защиты (электричество)</td><td><b>I класс</b></td></tr><tr class=\"t1\"><td width=\"40%\">Степень защиты</td><td><b>IPX0</b></td></tr><tr class=\"t0\"><td width=\"40%\">Ток (охлаждение)</td><td><b>3,4 А</b></td></tr><tr class=\"t1\"><td width=\"40%\">Подключение</td><td><b>220-240 В ~ 50 Гц</b></td></tr><tr class=\"t0\"><td width=\"40%\">Уровень шума</td><td><b>45–51 дБ</b></td></tr><tr class=\"t1\"><td width=\"40%\">Хладагент</td><td><b>R410А</b></td></tr><tr class=\"t0\"><td width=\"40%\">Размер (высота)</td><td><b>695 мм</b></td></tr><tr class=\"t1\"><td width=\"40%\">Размер (ширина)</td><td><b>270 мм</b></td></tr><tr class=\"t0\"><td width=\"40%\">Размер (глубина)</td><td><b>480 мм</b></td></tr><tr class=\"t1\"><td width=\"40%\">Вес</td><td><b>25 кг</b></td></tr><tr class=\"t0\"><td width=\"40%\">Гарантия</td><td><b>2 года</b></td></tr><tr class=\"t1\"><td width=\"40%\">Вес нетто, кг</td><td><b>27,5</b></td></tr><tr class=\"t0\"><td width=\"40%\">Вес брутто, кг</td><td><b>31</b></td></tr><tr class=\"t1\"><td width=\"40%\">Объём упаковки товара, м<sup>3</sup></td><td><b>0,1564785</b></td></tr><tr class=\"t0\"><td width=\"40%\">Длина упаковки товара, м</td><td><b>0,54</b></td></tr><tr class=\"t1\"><td width=\"40%\">Ширина упаковки товара, м</td><td><b>0,335</b></td></tr><tr class=\"t0\"><td width=\"40%\">Высота упаковки товара, м</td><td><b>0,865</b></td></tr><tr class=\"t1\"><td width=\"40%\">Сайт производителя:</td><td><a href=\"http://www.ballu.ru/\">Ballu</a></td></tr></table>",null,13990,"Мощность (охлаждение)","2,051 кВт","Мощность (обогрев)","- кВт","Потребляемая мощность (охлаждение)","0,785 кВт","Потребляемая мощность (нагрев)","- кВт","Класс энергоэффективности","A","Вентиляция","330 м3/ч","Класс защиты (электричество)","I класс","Степень защиты","IPX0","Ток (охлаждение)","3,4 А","Подключение","220-240 В ~ 50 Гц","Уровень шума","45–51 дБ","Хладагент","R410А","Размер (высота)","695 мм","Размер (ширина)","270 мм","Размер (глубина)","480 мм","Вес","25 кг","Гарантия","2 года","Вес нетто, кг","27,5","Вес брутто, кг","31","Объём упаковки товара, м","0,1564785","Длина упаковки товара, м","0,54","Ширина упаковки товара, м","0,335","Высота упаковки товара, м","0,865","Сайт производителя:","","","",""]
["Мобильный кондиционер Ballu BPAC-09 CE","Ballu","https://линии-тока.рф/d/1913920/d/20946_26194.png",20944,"Мобильные кондиционеры BALLU серии Smart","<table width=\"100%\"border=\"0\"cellspacing=\"0\"cellpadding=\"4\"class=\"border\"><tr class=\"t0\"><td width=\"40%\">Мощность (охлаждение)</td><td><b>2,638 кВт</b></td></tr><tr class=\"t1\"><td width=\"40%\">Мощность (обогрев)</td><td><b>- кВт</b></td></tr><tr class=\"t0\"><td width=\"40%\">Потребляемая мощность (охлаждение)</td><td><b>0,95 кВт</b></td></tr><tr class=\"t1\"><td width=\"40%\">Потребляемая мощность (нагрев)</td><td><b>- кВт</b></td></tr><tr class=\"t0\"><td width=\"40%\">Класс энергоэффективности</td><td><b>A</b></td></tr><tr class=\"t1\"><td width=\"40%\">Вентиляция</td><td><b>330 м3/ч</b></td></tr><tr class=\"t0\"><td width=\"40%\">Класс защиты (электричество)</td><td><b>I класс</b></td></tr><tr class=\"t1\"><td width=\"40%\">Степень защиты</td><td><b>IPX0</b></td></tr><tr class=\"t0\"><td width=\"40%\">Ток (охлаждение)</td><td><b>4,1 А</b></td></tr><tr class=\"t1\"><td width=\"40%\">Подключение</td><td><b>220-240 В ~ 50 Гц</b></td></tr><tr class=\"t0\"><td width=\"40%\">Уровень шума</td><td><b>45–51 дБ</b></td></tr><tr class=\"t1\"><td width=\"40%\">Хладагент</td><td><b>R410А</b></td></tr><tr class=\"t0\"><td width=\"40%\">Размер (высота)</td><td><b>695 мм</b></td></tr><tr class=\"t1\"><td width=\"40%\">Размер (ширина)</td><td><b>270 мм</b></td></tr><tr class=\"t0\"><td width=\"40%\">Размер (глубина)</td><td><b>480 мм</b></td></tr><tr class=\"t1\"><td width=\"40%\">Вес</td><td><b>26 кг</b></td></tr><tr class=\"t0\"><td width=\"40%\">Гарантия</td><td><b>2 года</b></td></tr><tr class=\"t1\"><td width=\"40%\">Вес нетто, кг</td><td><b>28,5</b></td></tr><tr class=\"t0\"><td width=\"40%\">Вес брутто, кг</td><td><b>32</b></td></tr><tr class=\"t1\"><td width=\"40%\">Объём упаковки товара, м<sup>3</sup></td><td><b>0,1564785</b></td></tr><tr class=\"t0\"><td width=\"40%\">Длина упаковки товара, м</td><td><b>0,54</b></td></tr><tr class=\"t1\"><td width=\"40%\">Ширина упаковки товара, м</td><td><b>0,335</b></td></tr><tr class=\"t0\"><td width=\"40%\">Высота упаковки товара, м</td><td><b>0,865</b></td></tr><tr class=\"t1\"><td width=\"40%\">Сайт производителя:</td><td><a href=\"http://www.ballu.ru/\">Ballu</a></td></tr></table>",null,15990,"Мощность (охлаждение)","2,638 кВт","Мощность (обогрев)","- кВт","Потребляемая мощность (охлаждение)","0,95 кВт","Потребляемая мощность (нагрев)","- кВт","Класс энергоэффективности","A","Вентиляция","330 м3/ч","Класс защиты (электричество)","I класс","Степень защиты","IPX0","Ток (охлаждение)","4,1 А","Подключение","220-240 В ~ 50 Гц","Уровень шума","45–51 дБ","Хладагент","R410А","Размер (высота)","695 мм","Размер (ширина)","270 мм","Размер (глубина)","480 мм","Вес","26 кг","Гарантия","2 года","Вес нетто, кг","28,5","Вес брутто, кг","32","Объём упаковки товара, м","0,1564785","Длина упаковки товара, м","0,54","Ширина упаковки товара, м","0,335","Высота упаковки товара, м","0,865","Сайт производителя:","","","",""]
["Мобильный кондиционер Ballu BPAC-12 CE","Ballu","https://линии-тока.рф/d/1913920/d/20946_26194.png",20945,"Мобильные кондиционеры BALLU серии Smart","<table width=\"100%\"border=\"0\"cellspacing=\"0\"cellpadding=\"4\"class=\"border\"><tr class=\"t0\"><td width=\"40%\">Мощность (охлаждение)</td><td><b>3,224 кВт</b></td></tr><tr class=\"t1\"><td width=\"40%\">Мощность (обогрев)</td><td><b>- кВт</b></td></tr><tr class=\"t0\"><td width=\"40%\">Потребляемая мощность (охлаждение)</td><td><b>1,25 кВт</b></td></tr><tr class=\"t1\"><td width=\"40%\">Потребляемая мощность (нагрев)</td><td><b>- кВт</b></td></tr><tr class=\"t0\"><td width=\"40%\">Класс энергоэффективности</td><td><b>A</b></td></tr><tr class=\"t1\"><td width=\"40%\">Вентиляция</td><td><b>330 м3/ч</b></td></tr><tr class=\"t0\"><td width=\"40%\">Класс защиты (электричество)</td><td><b>I класс</b></td></tr><tr class=\"t1\"><td width=\"40%\">Степень защиты</td><td><b>IPX0</b></td></tr><tr class=\"t0\"><td width=\"40%\">Ток (охлаждение)</td><td><b>5,5 А</b></td></tr><tr class=\"t1\"><td width=\"40%\">Подключение</td><td><b>220-240 В ~ 50 Гц</b></td></tr><tr class=\"t0\"><td width=\"40%\">Уровень шума</td><td><b>45–51 дБ</b></td></tr><tr class=\"t1\"><td width=\"40%\">Хладагент</td><td><b>R410А</b></td></tr><tr class=\"t0\"><td width=\"40%\">Размер (высота)</td><td><b>695 мм</b></td></tr><tr class=\"t1\"><td width=\"40%\">Размер (ширина)</td><td><b>270 мм</b></td></tr><tr class=\"t0\"><td width=\"40%\">Размер (глубина)</td><td><b>480 мм</b></td></tr><tr class=\"t1\"><td width=\"40%\">Вес</td><td><b>28 кг</b></td></tr><tr class=\"t0\"><td width=\"40%\">Гарантия</td><td><b>2 года</b></td></tr><tr class=\"t1\"><td width=\"40%\">Вес нетто, кг</td><td><b>29,5</b></td></tr><tr class=\"t0\"><td width=\"40%\">Вес брутто, кг</td><td><b>33</b></td></tr><tr class=\"t1\"><td width=\"40%\">Объём упаковки товара, м<sup>3</sup></td><td><b>0,1564785</b></td></tr><tr class=\"t0\"><td width=\"40%\">Длина упаковки товара, м</td><td><b>0,54</b></td></tr><tr class=\"t1\"><td width=\"40%\">Ширина упаковки товара, м</td><td><b>0,335</b></td></tr><tr class=\"t0\"><td width=\"40%\">Высота упаковки товара, м</td><td><b>0,865</b></td></tr><tr class=\"t1\"><td width=\"40%\">Сайт производителя:</td><td><a href=\"http://www.ballu.ru/\">Ballu</a></td></tr></table>",null,18990,"Мощность (охлаждение)","3,224 кВт","Мощность (обогрев)","- кВт","Потребляемая мощность (охлаждение)","1,25 кВт","Потребляемая мощность (нагрев)","- кВт","Класс энергоэффективности","A","Вентиляция","330 м3/ч","Класс защиты (электричество)","I класс","Степень защиты","IPX0","Ток (охлаждение)","5,5 А","Подключение","220-240 В ~ 50 Гц","Уровень шума","45–51 дБ","Хладагент","R410А","Размер (высота)","695 мм","Размер (ширина)","270 мм","Размер (глубина)","480 мм","Вес","28 кг","Гарантия","2 года","Вес нетто, кг","29,5","Вес брутто, кг","33","Объём упаковки товара, м","0,1564785","Длина упаковки товара, м","0,54","Ширина упаковки товара, м","0,335","Высота упаковки товара, м","0,865","Сайт производителя:","","","",""]
["Мобильный кондиционер Ballu BPAM-07H","Ballu","https://линии-тока.рф/d/1913920/d/15603_22130.png",15603,"Мобильные кондиционеры BALLU серии Air Master","<table width=\"100%\"border=\"0\"cellspacing=\"0\"cellpadding=\"4\"class=\"border\"><tr class=\"t0\"><td width=\"40%\">Мощность (охлаждение)</td><td><b>2,05 кВт</b></td></tr><tr class=\"t1\"><td width=\"40%\">Мощность (обогрев)</td><td><b>2,05 кВт</b></td></tr><tr class=\"t0\"><td width=\"40%\">Вентиляция</td><td><b>360 м3/ч</b></td></tr><tr class=\"t1\"><td width=\"40%\">Размер (высота)</td><td><b>630 мм</b></td></tr><tr class=\"t0\"><td width=\"40%\">Размер (ширина)</td><td><b>480 мм</b></td></tr><tr class=\"t1\"><td width=\"40%\">Размер (глубина)</td><td><b>300 мм</b></td></tr><tr class=\"t0\"><td width=\"40%\">Вес</td><td><b>24 кг</b></td></tr><tr class=\"t1\"><td width=\"40%\">Гарантия</td><td><b>2 года</b></td></tr><tr class=\"t0\"><td width=\"40%\">Вес нетто, кг</td><td><b>22,3</b></td></tr><tr class=\"t1\"><td width=\"40%\">Вес брутто, кг</td><td><b>24</b></td></tr><tr class=\"t0\"><td width=\"40%\">Объём упаковки товара, м<sup>3</sup></td><td><b>0,121968</b></td></tr><tr class=\"t1\"><td width=\"40%\">Длина упаковки товара, м</td><td><b>0,56</b></td></tr><tr class=\"t0\"><td width=\"40%\">Ширина упаковки товара, м</td><td><b>0,33</b></td></tr><tr class=\"t1\"><td width=\"40%\">Высота упаковки товара, м</td><td><b>0,66</b></td></tr><tr class=\"t0\"><td width=\"40%\">Сайт производителя:</td><td><a href=\"http://www.ballu.ru/\">Ballu</a></td></tr></table>",null,11500,"Мощность (охлаждение)",{"$f":"IvanPavlov($F18,COLUMN(B17),--ISEVEN(COLUMN(B17)))","v":"2,05 кВт"},{"$f":"IvanPavlov($F18,COLUMN(C17),--ISEVEN(COLUMN(C17)))","v":"Мощность (обогрев)"},{"$f":"IvanPavlov($F18,COLUMN(D17),--ISEVEN(COLUMN(D17)))","v":"2,05 кВт"},{"$f":"IvanPavlov($F18,COLUMN(E17),--ISEVEN(COLUMN(E17)))","v":"Вентиляция"},"360 м3/ч","Размер (высота)","630 мм","Размер (ширина)","480 мм","Размер (глубина)","300 мм","Вес","24 кг","Гарантия","2 года","Вес нетто, кг","22,3","Вес брутто, кг","24","Объём упаковки товара, м","0,121968","Длина упаковки товара, м","0,56","Ширина упаковки товара, м","0,33","Высота упаковки товара, м","0,66","Сайт производителя:","","","","","","","","","","","","","","","","","","","","","",""]
["Мобильный кондиционер Ballu BPAM-09H","Ballu","https://линии-тока.рф/d/1913920/d/15603_22130.png",15604,"Мобильные кондиционеры BALLU серии Air Master","<table width=\"100%\"border=\"0\"cellspacing=\"0\"cellpadding=\"4\"class=\"border\"><tr class=\"t0\"><td width=\"40%\">Мощность (охлаждение)</td><td><b>2,64 кВт</b></td></tr><tr class=\"t1\"><td width=\"40%\">Мощность (обогрев)</td><td><b>2,64 кВт</b></td></tr><tr class=\"t0\"><td width=\"40%\">Вентиляция</td><td><b>360 м3/ч</b></td></tr><tr class=\"t1\"><td width=\"40%\">Размер (высота)</td><td><b>630 мм</b></td></tr><tr class=\"t0\"><td width=\"40%\">Размер (ширина)</td><td><b>480 мм</b></td></tr><tr class=\"t1\"><td width=\"40%\">Размер (глубина)</td><td><b>300 мм</b></td></tr><tr class=\"t0\"><td width=\"40%\">Вес</td><td><b>25 кг</b></td></tr><tr class=\"t1\"><td width=\"40%\">Гарантия</td><td><b>2 года</b></td></tr><tr class=\"t0\"><td width=\"40%\">Вес нетто, кг</td><td><b>25</b></td></tr><tr class=\"t1\"><td width=\"40%\">Вес брутто, кг</td><td><b>27</b></td></tr><tr class=\"t0\"><td width=\"40%\">Объём упаковки товара, м<sup>3</sup></td><td><b>0,121968</b></td></tr><tr class=\"t1\"><td width=\"40%\">Длина упаковки товара, м</td><td><b>0,56</b></td></tr><tr class=\"t0\"><td width=\"40%\">Ширина упаковки товара, м</td><td><b>0,33</b></td></tr><tr class=\"t1\"><td width=\"40%\">Высота упаковки товара, м</td><td><b>0,66</b></td></tr><tr class=\"t0\"><td width=\"40%\">Сайт производителя:</td><td><a href=\"http://www.ballu.ru/\">Ballu</a></td></tr></table>",null,11900,"Мощность (охлаждение)","2,64 кВт","Мощность (обогрев)","2,64 кВт","Вентиляция","360 м3/ч","Размер (высота)","630 мм","Размер (ширина)","480 мм","Размер (глубина)","300 мм","Вес","25 кг","Гарантия","2 года","Вес нетто, кг","25","Вес брутто, кг","27","Объём упаковки товара, м","0,121968","Длина упаковки товара, м","0,56","Ширина упаковки товара, м","0,33","Высота упаковки товара, м","0,66","Сайт производителя:","","","","","","","","","","","","","","","","","","","","","",""]
["Мобильный кондиционер Ballu BPAM-12HD","Ballu","https://линии-тока.рф/d/1913920/d/15603_22130.png",15605,"Мобильные кондиционеры BALLU серии Air Master","<table width=\"100%\"border=\"0\"cellspacing=\"0\"cellpadding=\"4\"class=\"border\"><tr class=\"t0\"><td width=\"40%\">Мощность (охлаждение)</td><td><b>3,52 кВт</b></td></tr><tr class=\"t1\"><td width=\"40%\">Мощность (обогрев)</td><td><b>3,52 кВт</b></td></tr><tr class=\"t0\"><td width=\"40%\">Вентиляция</td><td><b>420 м3/ч</b></td></tr><tr class=\"t1\"><td width=\"40%\">Размер (высота)</td><td><b>778 мм</b></td></tr><tr class=\"t0\"><td width=\"40%\">Размер (ширина)</td><td><b>505 мм</b></td></tr><tr class=\"t1\"><td width=\"40%\">Размер (глубина)</td><td><b>300 мм</b></td></tr><tr class=\"t0\"><td width=\"40%\">Вес</td><td><b>29,5 кг</b></td></tr><tr class=\"t1\"><td width=\"40%\">Гарантия</td><td><b>2 года</b></td></tr><tr class=\"t0\"><td width=\"40%\">Вес нетто, кг</td><td><b>29,5</b></td></tr><tr class=\"t1\"><td width=\"40%\">Вес брутто, кг</td><td><b>31,5</b></td></tr><tr class=\"t0\"><td width=\"40%\">Объём упаковки товара, м<sup>3</sup></td><td><b>0,1475595</b></td></tr><tr class=\"t1\"><td width=\"40%\">Длина упаковки товара, м</td><td><b>0,55</b></td></tr><tr class=\"t0\"><td width=\"40%\">Ширина упаковки товара, м</td><td><b>0,33</b></td></tr><tr class=\"t1\"><td width=\"40%\">Высота упаковки товара, м</td><td><b>0,813</b></td></tr><tr class=\"t0\"><td width=\"40%\">Сайт производителя:</td><td><a href=\"http://www.ballu.ru/\">Ballu</a></td></tr></table>",null,33382,"Мощность (охлаждение)","3,52 кВт","Мощность (обогрев)","3,52 кВт","Вентиляция","420 м3/ч","Размер (высота)","778 мм","Размер (ширина)","505 мм","Размер (глубина)","300 мм","Вес","29,5 кг","Гарантия","2 года","Вес нетто, кг","29,5","Вес брутто, кг","31,5","Объём упаковки товара, м","0,1475595","Длина упаковки товара, м","0,55","Ширина упаковки товара, м","0,33","Высота упаковки товара, м","0,813","Сайт производителя:","","","","","","","","","","","","","","","","","","","","","",""]